bitfinex/quotes_BTCUSD_20240901
["timestamp","ask_amount","ask_price","bid_price","bid_amount"]
[1725231695338,0.347535,57548.0,57542.0,0.01149665]
[1725231695339,0.173771,57547.0,57542.0,0.01149665]
[1725231695554,0.347535,57548.0,57541.0,0.01150444]
[1725231695780,0.15652049,57594.0,57548.0,0.002]
[1725231695781,0.2213,57561.0,57548.0,0.002]
[1725231696066,0.29525312,57568.0,57548.0,0.002]
[1725231696067,0.1883,57568.0,57549.0,0.00347505]
[1725231696311,0.005,57585.0,57548.0,0.002]
[1725231696312,0.1883,57577.0,57561.0,0.347455]
[1725231696558,0.1883,57577.0,57563.0,0.173721]
[1725231696559,0.1737,57571.0,57563.0,0.173721]
[1725231696797,0.41341802,57574.0,57566.0,0.173712]
[1725231697013,0.41341802,57574.0,57564.0,0.023]
[1725231697014,0.1883,57577.0,57572.0,0.002]
[1725231697015,0.173693,57573.0,57572.0,0.002]
[1725231697235,0.347368,57576.0,57567.0,0.023]
[1725231697236,0.173689,57574.0,57573.0,0.002]
[1725231697475,0.173684,57576.0,57575.0,0.002]
[1725231697736,0.2199,57579.0,57567.0,0.023]
[1725231697737,0.0004,57579.0,57576.0,0.002]
[1725231698022,0.17369,57574.0,57572.0,0.002]
[1725231698241,0.0004,57579.0,57572.0,0.002]
[1725231698930,0.0004,57579.0,57578.0,0.521031]
[1725231699154,0.0004,57579.0,57578.0,0.023]
[1725231699370,0.0004,57579.0,57578.0,0.196677]
[1725231699591,0.02764891,57579.0,57578.0,0.023]
[1725231700032,0.02264891,57579.0,57578.0,0.023]
[1725231700241,0.173674,57579.0,57578.0,0.023]
[1725231700468,0.521022,57579.0,57578.0,0.023]
[1725231700729,0.521022,57579.0,57566.0,0.002]
[1725231700730,0.17371,57567.0,57566.0,0.002]
[1725231700968,1.37443207,57579.0,57557.0,0.58308]
[1725231700969,0.173704,57569.0,57568.0,0.002]
[1725231701207,0.173704,57569.0,57557.0,0.2356]
[1725231701208,0.173695,57572.0,57567.0,0.002]
[1725231701424,0.516,57579.0,57572.0,0.002]
[1725231701636,0.173692,57573.0,57572.0,0.002]
[1725231701902,0.1,57578.0,57567.0,0.002]
[1725231702132,0.347373,57575.0,57567.0,0.002]
[1725231702366,0.173692,57573.0,57572.0,0.002]
[1725231702590,0.521077,57573.0,57572.0,0.002]
[1725231702816,0.12725389,57578.0,57567.0,0.002]
[1725231702817,0.173707,57568.0,57567.0,0.002]
[1725231703095,0.12725389,57578.0,57567.0,0.002]
[1725231703096,0.02725389,57578.0,57577.0,0.17568]
[1725231703324,0.02725389,57578.0,57577.0,0.70034]
[1725231703566,0.02725389,57578.0,57577.0,0.72334]
[1725231704301,0.20093089,57578.0,57577.0,0.025]
[1725231704545,0.02725389,57578.0,57577.0,0.025]
[1725231704761,0.02725389,57578.0,57577.0,0.17568]
[1725231705043,0.02725389,57578.0,57572.0,0.02647353]
[1725231705044,0.173692,57573.0,57572.0,0.002]
[1725231705289,0.173701,57570.0,57569.0,0.002]
[1725231705749,0.173701,57570.0,57560.0,0.347461]
[1725231705750,0.578653,57579.0,57565.0,0.002]
[1725231705751,0.173713,57566.0,57565.0,0.002]
[1725231705992,0.52114,57566.0,57565.0,0.002]
[1725231706465,0.52114,57566.0,57556.0,0.001]
[1725231706466,0.521221,57557.0,57556.0,0.001]
[1725231706711,0.521221,57557.0,57546.0,0.226]
[1725231706712,0.1,57565.0,57547.0,0.347539]
[1725231706934,0.1,57565.0,57546.0,0.0098]
[1725231706935,0.13343,57565.0,57546.0,0.0098]
[1725231707171,0.13343,57565.0,57548.0,0.01144997]
[1725231707172,0.173724,57563.0,57548.0,0.01144997]
[1725231707386,0.1,57562.0,57558.0,0.347472]
[1725231707637,0.347408,57570.0,57546.0,0.0148]
[1725231707638,0.1,57567.0,57549.0,0.25116821]
[1725231707886,0.2343,57574.0,57549.0,0.23972602]
[1725231707887,0.347412,57569.0,57549.0,0.23972602]
[1725231708114,0.19184,57577.0,57546.0,0.0248]
[1725231708115,0.02725792,57576.0,57555.0,0.23972602]
[1725231708341,0.02725792,57576.0,57556.0,0.2113]
[1725231708342,0.17373,57561.0,57556.0,0.2113]
[1725231708597,0.69472886,57575.0,57556.0,0.2113]
[1725231708598,0.02911597,57575.0,57562.0,0.173725]
[1725231708833,0.02911597,57575.0,57556.0,0.22268773]
[1725231708834,0.12922012,57574.0,57556.0,0.22268773]
[1725231709107,0.02721792,57576.0,57573.0,0.17369]
[1725231709355,0.0104177,57583.0,57582.0,0.34733]
[1725231709588,0.0104177,57583.0,57582.0,0.520995]
[1725231709810,0.0104177,57583.0,57582.0,0.543995]
[1725231710047,0.0104177,57583.0,57582.0,0.891325]
[1725231710287,0.0104177,57583.0,57582.0,0.196665]
[1725231710517,0.0104177,57583.0,57582.0,0.543995]
[1725231710789,0.0104177,57583.0,57582.0,0.023]
[1725231711265,0.0104177,57583.0,57582.0,0.173665]
[1725231711510,0.0104177,57583.0,57582.0,0.543995]
[1725231711734,0.0104177,57583.0,57582.0,0.023]
[1725231711954,0.0104177,57583.0,57579.0,0.370348]
[1725231712213,0.0104177,57583.0,57579.0,0.023]
[1725231712439,0.173666,57582.0,57579.0,0.023]
[1725231712662,0.173666,57582.0,57577.0,0.196679]
[1725231712912,0.0104177,57583.0,57574.0,0.1708]
[1725231713136,0.173678,57578.0,57573.0,0.173691]
[1725231713407,0.218,57582.0,57562.0,0.392125]
[1725231713627,0.12829965,57581.0,57568.0,0.173705]
[1725231713839,0.34738,57574.0,57562.0,0.392123]
[1725231714075,0.02912058,57573.0,57568.0,0.173706]
[1725231714317,0.347384,57574.0,57566.0,0.173712]
[1725231714568,0.347373,57575.0,57564.0,0.173717]
[1725231714569,0.173701,57570.0,57564.0,0.173717]
[1725231714789,0.01847583,57580.0,57563.0,0.347445]
[1725231714790,0.01847583,57580.0,57565.0,0.00347407]
[1725231715014,0.49878077,57581.0,57570.0,0.347397]
[1725231715015,0.1,57581.0,57570.0,0.347397]
[1725231715234,0.01312167,57579.0,57564.0,0.005]
[1725231715473,0.02911187,57579.0,57564.0,0.005]
[1725231715720,0.01311993,57578.0,57565.0,0.023]
[1725231715980,0.01311993,57578.0,57562.0,0.2184]
[1725231715981,0.36048093,57577.0,57563.0,0.023]
[1725231716247,0.37647918,57576.0,57567.0,0.173709]
[1725231716509,0.37647918,57576.0,57562.0,0.2184]
[1725231716510,0.347392,57572.0,57562.0,0.2184]
[1725231716744,0.17369,57574.0,57568.0,0.173707]
[1725231716959,0.347359,57578.0,57567.0,0.347419]
[1725231716960,0.01598622,57573.0,57567.0,0.347419]
[1725231717197,0.17369,57574.0,57568.0,0.173706]
[1725231717446,0.347375,57575.0,57559.0,0.1735]
[1725231717682,0.35014372,57583.0,57559.0,0.1735]
[1725231717683,0.173706,57569.0,57564.0,0.173718]
[1725231717904,0.173724,57563.0,57559.0,0.1735]
[1725231718121,0.1104177,57583.0,57560.0,0.0034744]
[1725231718346,0.1104177,57583.0,57561.0,0.0084738]
[1725231718347,0.03525493,57582.0,57561.0,0.0084738]
[1725231718597,0.11015953,57582.0,57567.0,0.347419]
[1725231718852,0.02910414,57581.0,57568.0,0.2254]
[1725231719125,0.173684,57576.0,57568.0,0.2254]
[1725231719382,0.1104177,57583.0,57569.0,0.023]
[1725231719383,0.173689,57575.0,57569.0,0.023]
[1725231719633,0.347357,57578.0,57569.0,0.370408]
[1725231719883,0.173691,57574.0,57569.0,0.023]
[1725231720113,0.1,57584.0,57578.0,0.173675]
[1725231720332,0.1,57584.0,57570.0,0.347402]
[1725231720333,0.02911033,57582.0,57579.0,0.023]
[1725231720550,0.02911085,57581.0,57579.0,0.023]
[1725231720801,0.10818,57589.0,57572.0,0.347388]
[1725231720802,0.00818,57589.0,57580.0,0.00347324]
[1725231721071,0.00818,57589.0,57582.0,0.520995]
[1725231721347,0.00836604,57583.0,57582.0,1.248655]
[1725231721576,0.00836604,57583.0,57582.0,1.433055]
[1725231721820,0.00836604,57583.0,57582.0,1.423055]
[1725231722047,0.00836604,57583.0,57582.0,0.723395]
[1725231723217,0.00836604,57583.0,57570.0,0.005]
[1725231723218,0.00836604,57583.0,57564.0,0.2267]
[1725231723467,0.00836604,57583.0,57567.0,0.173709]
[1725231723468,0.35650904,57583.0,57567.0,0.173709]
[1725231723713,0.35650904,57583.0,57560.0,0.85286486]
[1725231723714,0.2293,57581.0,57560.0,0.347457]
[1725231723946,0.347353,57579.0,57568.0,0.173706]
[1725231724210,0.01312355,57578.0,57570.0,0.347397]
[1725231724444,0.01312355,57578.0,57558.0,0.47142602]
[1725231724445,0.347389,57573.0,57565.0,0.173715]
[1725231724685,0.347389,57573.0,57557.0,0.1795]
[1725231724686,0.02911395,57572.0,57561.0,0.50540786]
[1725231724952,0.1,57580.0,57561.0,0.51388204]
[1725231724953,0.02911395,57571.0,57561.0,0.51388204]
[1725231725199,0.1,57580.0,57552.0,0.2267]
[1725231725200,0.03695101,57579.0,57557.0,0.347477]
[1725231725432,0.03695101,57579.0,57552.0,0.2267]
[1725231725433,0.173714,57566.0,57560.0,0.17373]
[1725231725667,0.06371781,57578.0,57558.0,0.347474]
[1725231725668,0.03695101,57579.0,57573.0,0.17369]
[1725231725896,0.05126314,57578.0,57572.0,0.173693]
[1725231726125,0.53130804,57583.0,57571.0,0.173697]
[1725231726126,0.173684,57576.0,57571.0,0.173697]
[1725231726356,0.173693,57573.0,57567.0,0.173709]
[1725231726622,0.173693,57573.0,57557.0,0.01]
[1725231726623,0.02911723,57572.0,57562.0,0.347447]
[1725231726867,0.53130804,57583.0,57562.0,0.347447]
[1725231726868,0.18398404,57583.0,57564.0,0.23972602]
[1725231727106,0.50540786,57579.0,57565.0,0.023]
[1725231727346,0.00918404,57583.0,57565.0,0.023]
[1725231727347,0.2287,57573.0,57565.0,0.023]
[1725231727594,0.2287,57573.0,57560.0,0.023]
[1725231727595,0.23292062,57572.0,57560.0,0.023]
[1725231727846,0.23292062,57572.0,57548.0,0.89170786]
[1725231727847,0.173728,57562.0,57548.0,0.89170786]
[1725231728098,0.1782,57572.0,57557.0,0.173738]
[1725231728318,0.173704,57569.0,57561.0,0.347455]
[1725231728545,0.02912232,57568.0,57562.0,0.0034744]
[1725231728801,0.02912232,57568.0,57558.0,0.01137217]
[1725231728802,0.2287,57573.0,57567.0,0.17371]
[1725231729035,0.21791519,57568.0,57549.0,0.173764]
[1725231729278,0.34748,57558.0,57549.0,0.67917186]
[1725231729502,0.42291082,57567.0,57550.0,0.01143441]
[1725231729503,0.521275,57551.0,57550.0,0.01143441]
[1725231729752,1.18378866,57551.0,57550.0,0.01143441]
[1725231729992,1.18378866,57551.0,57545.0,0.0008987]
[1725231729993,0.33889656,57551.0,57545.0,0.0008987]
[1725231730224,0.173771,57547.0,57545.0,0.0008987]
[1725231730451,0.347526,57550.0,57545.0,0.0008987]
[1725231730452,0.05468643,57550.0,57545.0,0.0008987]
[1725231730707,0.2842,57551.0,57545.0,0.0008987]
[1725231730708,0.755613,57547.0,57545.0,0.0008987]
[1725231730936,1.103155,57547.0,57545.0,0.0008987]
[1725231731183,0.703222,57546.0,57545.0,0.0008987]
[1725231731410,2.67166914,57546.0,57545.0,0.0008987]
[1725231731630,3.38275183,57546.0,57545.0,0.0008987]
[1725231731885,3.19875547,57546.0,57545.0,0.0008987]
[1725231732104,1.11434454,57546.0,57545.0,0.0008987]
[1725231732330,1.82049923,57546.0,57545.0,0.0008987]
[1725231732558,1.25623469,57546.0,57545.0,0.0008987]
[1725231732805,0.87973469,57546.0,57545.0,0.0008987]
[1725231733025,0.53218669,57546.0,57545.0,0.0008987]
[1725231733240,0.3343,57546.0,57545.0,0.0008987]
[1725231733498,0.41192602,57554.0,57545.0,0.0008987]
[1725231733499,0.1722,57554.0,57545.0,0.0008987]
[1725231733760,0.1,57553.0,57545.0,0.0008987]
[1725231733996,0.2283,57555.0,57546.0,0.347546]
[1725231734275,0.1785,57569.0,57547.0,0.44590089]
[1725231734530,0.50540786,57570.0,57548.0,0.2203]
[1725231734752,0.2213,57571.0,57566.0,0.173711]
[1725231734997,0.2213,57571.0,57566.0,0.173713]
[1725231735264,0.2213,57571.0,57549.0,0.005]
[1725231735265,0.1014291,57571.0,57567.0,0.023]
[1725231735486,0.173732,57560.0,57554.0,0.173748]
[1725231735748,0.173732,57560.0,57550.0,0.50540786]
[1725231735749,0.17373,57561.0,57555.0,0.023]
[1725231735993,0.1014291,57571.0,57542.0,0.347569]
[1725231735994,0.23972602,57564.0,57542.0,0.347569]
[1725231736233,0.23972602,57564.0,57540.0,0.2159]
[1725231736234,0.173763,57550.0,57543.0,0.67918986]
[1725231736478,0.01014291,57570.0,57524.0,0.2159]
[1725231736479,0.521322,57546.0,57524.0,0.2159]
[1725231736716,0.621322,57546.0,57526.0,0.173833]
[1725231736950,0.6373054,57546.0,57527.0,0.00347604]
[1725231737186,0.273774,57546.0,57537.0,0.173798]
[1725231737433,0.273774,57546.0,57526.0,0.347662]
[1725231737434,0.621322,57546.0,57530.0,0.347641]
[1725231737659,0.96887,57546.0,57530.0,0.347641]
[1725231737903,0.521322,57546.0,57530.0,0.695282]
[1725231738138,0.521322,57546.0,57524.0,0.2159]
[1725231738139,0.173774,57546.0,57525.0,0.50540786]
[1725231738383,1.7444954,57546.0,57525.0,0.50540786]
[1725231738618,3.06733134,57546.0,57526.0,0.50540786]
[1725231738865,3.41487934,57546.0,57526.0,0.50540786]
[1725231739107,3.09290149,57546.0,57526.0,0.50540786]
[1725231739351,2.8941752,57546.0,57526.0,0.50540786]
[1725231739627,2.8364818,57546.0,57526.0,0.50540786]
[1725231739863,2.68350462,57546.0,57526.0,0.50540786]
[1725231740112,1.98840929,57546.0,57528.0,0.2107]
[1725231740350,1.98840929,57546.0,57535.0,0.173806]
[1725231740351,1.39055429,57546.0,57535.0,0.173806]
[1725231740603,2.0008596,57546.0,57527.0,0.50540786]
[1725231740858,1.89493669,57546.0,57527.0,0.50540786]
[1725231741097,2.10250787,57546.0,57523.0,0.50540786]
[1725231741571,2.23911109,57546.0,57523.0,0.50540786]
[1725231741808,2.32519391,57546.0,57523.0,0.50540786]
[1725231742275,2.27780077,57546.0,57523.0,0.50540786]
[1725231742517,2.32019561,57546.0,57523.0,0.50540786]
[1725231742762,0.52152,57524.0,57523.0,0.50540786]
[1725231743011,0.17384,57524.0,57523.0,0.50540786]
[1725231743262,0.347676,57525.0,57512.0,0.008987]
[1725231743532,0.352631,57533.0,57512.0,0.008987]
[1725231743533,0.52162,57513.0,57512.0,0.008987]
[1725231743782,0.73972,57513.0,57512.0,0.008987]
[1725231744078,0.105,57524.0,57512.0,0.008987]
[1725231744079,0.2181,57520.0,57512.0,0.008987]
[1725231744313,0.2181,57527.0,57514.0,0.231]
[1725231744552,0.2181,57527.0,57512.0,0.008987]
[1725231744553,0.199524,57526.0,57512.0,0.008987]
[1725231744795,0.173854,57520.0,57512.0,0.008987]
[1725231745049,0.17387,57514.0,57513.0,0.023]
[1725231745291,0.1,57526.0,57513.0,0.023]
[1725231745535,0.119171,57525.0,57513.0,0.023]
[1725231745775,0.347694,57522.0,57513.0,0.023]
[1725231746021,0.1,57526.0,57513.0,0.023]
[1725231746260,0.173819,57531.0,57524.0,0.347676]
[1725231746518,0.3138,57534.0,57525.0,0.023]
[1725231746760,0.1,57530.0,57525.0,0.023]
[1725231746986,0.1,57534.0,57527.0,0.17383]
[1725231747231,0.347628,57533.0,57528.0,0.023]
[1725231747467,0.1,57534.0,57514.0,0.579035]
[1725231747468,0.347658,57528.0,57514.0,0.579035]
[1725231747945,0.1,57534.0,57530.0,0.173821]
[1725231747949,0.571984,57540.0,57528.0,0.1686]
[1725231747950,0.2244,57540.0,57528.0,0.1686]
[1725231748204,0.50540786,57545.0,57535.0,0.347608]
[1725231748471,0.347494,57555.0,57531.0,0.023]
[1725231748472,0.005,57571.0,57536.0,0.00347596]
[1725231748691,0.173751,57554.0,57548.0,0.173767]
[1725231748936,0.173751,57554.0,57536.0,0.023]
[1725231748937,0.347533,57549.0,57536.0,0.023]
[1725231749164,0.0347533,57548.0,57531.0,0.52840786]
[1725231749413,0.34747,57559.0,57538.0,0.173797]
[1725231749632,0.110581,57558.0,57539.0,0.023]
[1725231749891,0.2341,57562.0,57540.0,0.00347561]
[1725231749892,0.2241,57562.0,57540.0,0.00347561]
[1725231750147,0.005,57574.0,57540.0,0.00347561]
[1725231750148,0.2241,57568.0,57541.0,0.65702602]
[1725231750400,0.173734,57560.0,57554.0,0.173748]
[1725231750626,0.173734,57560.0,57541.0,0.66853046]
[1725231750627,0.173731,57560.0,57555.0,0.023]
[1725231750894,0.173743,57556.0,57555.0,0.01139551]
[1725231751116,0.868717,57556.0,57555.0,0.01139551]
[1725231751363,0.23972602,57566.0,57541.0,0.741876]
[1725231751364,0.34747,57559.0,57542.0,0.347571]
[1725231751722,0.23972602,57561.0,57549.0,0.50540786]
[1725231751817,0.02324915,57567.0,57549.0,0.50540786]
[1725231751818,0.34748,57558.0,57549.0,0.173763]
[1725231752053,0.173747,57555.0,57550.0,0.023]
[1725231752278,0.58715902,57566.0,57550.0,0.03443441]
[1725231752279,0.23972602,57566.0,57550.0,0.03443441]
[1725231752538,0.23972602,57566.0,57540.0,0.347582]
[1725231752539,0.1647422,57565.0,57540.0,0.347582]
[1725231752789,0.1647422,57565.0,57525.0,0.34767]
[1725231752790,0.347525,57550.0,57544.0,0.50540786]
[1725231753013,0.347525,57550.0,57541.0,0.023]
[1725231753014,0.23972602,57561.0,57545.0,0.023]
[1725231753308,0.23972602,57556.0,57533.0,0.34762]
[1725231753538,0.23972602,57556.0,57521.0,0.005]
[1725231753539,0.23972602,57551.0,57532.0,0.2112]
[1725231753758,0.04000773,57550.0,57532.0,0.2112]
[1725231753994,0.173802,57537.0,57532.0,0.2112]
[1725231754234,0.4187956,57550.0,57524.0,0.2112]
[1725231754235,0.58727502,57546.0,57524.0,0.2112]
[1725231754455,0.58727502,57546.0,57525.0,0.85308186]
[1725231754456,0.12808406,57545.0,57525.0,0.85308186]
[1725231754706,0.12808406,57545.0,57526.0,0.173832]
[1725231754707,0.173814,57533.0,57526.0,0.173832]
[1725231754958,0.347584,57540.0,57518.0,0.2198]
[1725231754959,0.2284,57536.0,57518.0,0.2198]
[1725231755237,0.2284,57536.0,57512.0,0.008987]
[1725231755238,0.347705,57520.0,57512.0,0.008987]
[1725231755479,0.173865,57516.0,57512.0,0.008987]
[1725231755683,0.347714,57519.0,57512.0,0.008987]
[1725231756134,0.23972602,57529.0,57512.0,0.008987]
[1725231756135,0.347681,57524.0,57512.0,0.008987]
[1725231756354,0.0239726,57528.0,57512.0,0.008987]
[1725231756580,0.173873,57513.0,57512.0,0.008987]
[1725231756879,1.53506102,57513.0,57512.0,0.008987]
[1725231757133,1.96812966,57513.0,57512.0,0.008987]
[1725231757417,1.98413595,57513.0,57512.0,0.008987]
[1725231757614,1.57284476,57513.0,57512.0,0.008987]
[1725231757839,1.22509776,57513.0,57512.0,0.008987]
[1725231758052,0.63762474,57513.0,57512.0,0.008987]
[1725231758298,0.62162,57513.0,57512.0,0.008987]
[1725231758526,0.005,57524.0,57512.0,0.008987]
[1725231758527,0.52297,57526.0,57512.0,0.008987]
[1725231758800,0.01600763,57525.0,57512.0,0.008987]
[1725231759014,0.173856,57519.0,57513.0,0.18559546]
[1725231759232,0.173859,57518.0,57514.0,0.023]
[1725231759525,0.347704,57521.0,57514.0,0.023]
[1725231759526,0.173858,57519.0,57514.0,0.023]
[1725231759750,0.173827,57529.0,57521.0,0.173847]
[1725231759977,0.52293,57533.0,57514.0,0.023]
[1725231759978,0.173867,57515.0,57514.0,0.023]
[1725231760199,0.50540786,57530.0,57512.0,0.008987]
[1725231760200,0.869367,57513.0,57512.0,0.008987]
[1725231760434,0.52162,57513.0,57512.0,0.008987]
[1725231760687,0.869367,57513.0,57512.0,0.008987]
[1725231760926,1.28849302,57513.0,57512.0,0.008987]
[1725231761142,1.96923402,57513.0,57512.0,0.008987]
[1725231761425,2.59303207,57513.0,57512.0,0.008987]
[1725231761641,2.24528507,57513.0,57512.0,0.008987]
[1725231761863,2.41383671,57513.0,57512.0,0.008987]
[1725231762092,2.20813563,57513.0,57512.0,0.008987]
[1725231762310,2.15378863,57513.0,57512.0,0.008987]
[1725231763052,2.57727943,57513.0,57512.0,0.008987]
[1725231763555,2.1859292,57513.0,57512.0,0.008987]
[1725231763774,2.1809292,57513.0,57512.0,0.008987]
[1725231764062,2.30884564,57513.0,57512.0,0.008987]
[1725231764319,2.1537711,57513.0,57512.0,0.008987]
[1725231764584,2.5065181,57513.0,57512.0,0.008987]
[1725231764790,2.5065181,57513.0,57506.0,0.0008998]
[1725231764791,1.46196602,57507.0,57506.0,0.0008998]
[1725231765010,3.49021091,57507.0,57506.0,0.0008998]
[1725231765258,3.75876255,57507.0,57506.0,0.0008998]
[1725231765973,3.23742791,57507.0,57506.0,0.0008998]
[1725231766216,2.1375901,57507.0,57506.0,0.0008998]
[1725231766701,2.1325901,57507.0,57506.0,0.0008998]
[1725231766947,1.6159161,57507.0,57506.0,0.0008998]
[1725231767318,1.7898071,57507.0,57506.0,0.0008998]
[1725231767408,2.1375901,57507.0,57506.0,0.0008998]
[1725231767672,2.1325901,57507.0,57506.0,0.0008998]
[1725231767892,0.2131,57513.0,57506.0,0.0008998]
[1725231768143,0.521674,57507.0,57506.0,0.0008998]
[1725231768362,1.134797,57507.0,57506.0,0.0008998]
[1725231768603,0.173887,57509.0,57506.0,0.0008998]
[1725231768845,0.2131,57513.0,57506.0,0.0008998]
[1725231769064,0.173886,57509.0,57506.0,0.0008998]
[1725231769302,0.1,57508.0,57506.0,0.0008998]
[1725231769519,0.173891,57507.0,57506.0,0.0008998]
[1725231769736,0.100818,57507.0,57506.0,0.0008998]
[1725231769984,0.100818,57507.0,57506.0,0.1747938]
[1725231769985,0.000818,57507.0,57506.0,0.1747938]
[1725231770207,0.000818,57507.0,57506.0,0.4073938]
[1725231770487,0.000818,57507.0,57506.0,0.7551828]
[1725231771057,0.000818,57507.0,57506.0,0.2334998]
[1725231771245,0.000818,57507.0,57506.0,0.4073938]
[1725231771456,0.000818,57507.0,57506.0,1.4507608]
[1725231771671,0.000818,57507.0,57506.0,0.4073938]
[1725231771884,0.000818,57507.0,57506.0,1.1029718]
[1725231772550,0.000818,57507.0,57506.0,1.6251608]
[1725231772766,0.000818,57507.0,57506.0,1.2773718]
[1725231773220,0.000818,57507.0,57506.0,0.2334998]
[1725231773464,0.000818,57507.0,57506.0,0.0008998]
[1725231773465,0.76221802,57507.0,57506.0,0.0008998]
[1725231773701,0.76221802,57507.0,57506.0,0.01267679]
[1725231773702,0.622492,57507.0,57506.0,0.01267679]
[1725231773907,0.622492,57507.0,57506.0,0.0008998]
[1725231774352,0.7579589,57507.0,57506.0,0.0008998]
[1725231774790,0.970275,57507.0,57506.0,0.0008998]
[1725231775247,1.21000102,57507.0,57506.0,0.0008998]
[1725231775457,1.31801602,57507.0,57506.0,0.0008998]
[1725231775673,1.68177245,57507.0,57506.0,0.0008998]
[1725231775886,0.11679143,57507.0,57506.0,0.0008998]
[1725231776120,0.000818,57507.0,57506.0,0.0008998]
[1725231776345,0.100818,57507.0,57506.0,0.0008998]
[1725231776549,0.100818,57507.0,57506.0,0.01267679]
[1725231776791,0.000818,57507.0,57506.0,0.0008998]
[1725231777079,0.000818,57507.0,57506.0,0.01267679]
[1725231777315,0.000818,57507.0,57506.0,0.0238998]
[1725231777546,0.000818,57507.0,57506.0,0.01267679]
[1725231777761,0.000818,57507.0,57506.0,0.03567679]
[1725231777983,0.000818,57507.0,57506.0,0.90514879]
[1725231779319,0.000818,57507.0,57506.0,0.55735979]
[1725231779533,0.000818,57507.0,57506.0,0.90514879]
[1725231780456,0.000818,57507.0,57506.0,1.25293779]
[1725231780925,0.000818,57507.0,57506.0,1.45533779]
[1725231781194,0.05056971,57552.0,57506.0,1.45533779]
[1725231781195,0.70730786,57539.0,57510.0,0.2024]
[1725231781429,0.50540786,57522.0,57518.0,0.347713]
[1725231781674,0.2019,57539.0,57520.0,0.3477]
[1725231781901,0.2019,57548.0,57521.0,0.1718767]
[1725231782156,0.220851,57547.0,57521.0,0.20306014]
[1725231782406,0.173814,57533.0,57525.0,0.521506]
[1725231782602,0.173823,57530.0,57526.0,0.023]
[1725231782887,0.01279385,57547.0,57526.0,0.023]
[1725231782888,0.173815,57533.0,57526.0,0.01162121]
[1725231783111,0.173815,57533.0,57527.0,0.023]
[1725231783328,0.173824,57530.0,57527.0,0.023]
[1725231783549,0.173824,57530.0,57521.0,0.1684]
[1725231783550,0.173824,57530.0,57528.0,0.01160563]
[1725231783782,0.173825,57529.0,57528.0,0.01160563]
[1725231784032,0.173825,57529.0,57507.0,0.173891]
[1725231784033,0.005,57527.0,57507.0,0.173891]
[1725231784262,0.173869,57515.0,57507.0,0.17389]
[1725231784482,0.347733,57516.0,57507.0,0.17389]
[1725231784483,0.347733,57516.0,57508.0,0.01176141]
[1725231784733,0.70730786,57546.0,57529.0,0.1684]
[1725231784975,0.0288071,57545.0,57529.0,0.1684]
[1725231785189,0.23972602,57555.0,57530.0,0.01159006]
[1725231785190,0.0288071,57544.0,57530.0,0.01159006]
[1725231785442,0.173783,57543.0,57535.0,0.173804]
[1725231785655,0.2019,57553.0,57537.0,0.347597]
[1725231785876,0.2019,57553.0,57538.0,0.023]
[1725231785877,0.173768,57548.0,57538.0,0.023]
[1725231786141,0.521385,57539.0,57538.0,0.01152779]
[1725231786571,0.173795,57539.0,57538.0,0.01152779]
[1725231786573,0.173817,57532.0,57521.0,0.1684]
[1725231786797,0.173832,57527.0,57521.0,0.3708]
[1725231787026,0.005,57545.0,57495.0,0.05181039]
[1725231787027,0.521475,57529.0,57528.0,0.01160563]
[1725231787246,0.521475,57529.0,57506.0,0.0008998]
[1725231787247,0.446663,57529.0,57506.0,0.0008998]
[1725231787490,0.347695,57522.0,57512.0,0.173875]
[1725231787772,0.1648563,57528.0,57513.0,0.2024]
[1725231787989,0.1648563,57528.0,57513.0,0.01172246]
[1725231787990,0.355648,57527.0,57513.0,0.01172246]
[1725231788217,0.34772,57518.0,57513.0,0.01172246]
[1725231788453,0.34772,57518.0,57507.0,0.2024]
[1725231788454,0.521674,57507.0,57506.0,0.0008998]
[1725231788724,0.969457,57507.0,57506.0,0.0008998]
[1725231789179,0.621674,57507.0,57506.0,0.0008998]
[1725231789665,0.273891,57507.0,57506.0,0.0008998]
[1725231789916,0.621674,57507.0,57506.0,0.0008998]
[1725231790161,0.969457,57507.0,57506.0,0.0008998]
[1725231790626,0.621674,57507.0,57506.0,0.0008998]
[1725231791138,0.1,57507.0,57506.0,0.0008998]
[1725231791380,0.1,57513.0,57506.0,0.0008998]
[1725231791606,0.162,57515.0,57506.0,0.0008998]
[1725231791607,0.01598943,57512.0,57506.0,0.0238998]
[1725231791843,0.347747,57513.0,57507.0,0.0117692]
[1725231792079,0.347747,57513.0,57506.0,0.0008998]
[1725231792080,0.723874,57507.0,57506.0,0.0008998]
[1725231792351,1.53728607,57507.0,57506.0,0.0008998]
[1725231792610,3.41750842,57507.0,57506.0,0.0008998]
[1725231792833,3.80021592,57507.0,57506.0,0.0008998]
[1725231793070,1.612922,57489.0,57487.0,0.008987]
[1725231793296,2.49193742,57489.0,57487.0,0.51439486]
[1725231793519,2.27704942,57489.0,57487.0,0.008987]
[1725231793774,1.96240458,57489.0,57487.0,0.008987]
[1725231793990,2.29483788,57489.0,57487.0,0.008987]
[1725231794472,2.31529945,57489.0,57487.0,0.008987]
[1725231794690,2.28983788,57489.0,57487.0,0.008987]
[1725231795129,1.94194588,57489.0,57487.0,0.008987]
[1725231795348,0.3903,57498.0,57487.0,0.008987]
[1725231795599,0.02877328,57497.0,57487.0,0.008987]
[1725231795837,0.139674,57497.0,57489.0,0.0119095]
[1725231796078,0.173943,57490.0,57489.0,0.0119095]
[1725231796335,0.34783,57500.0,57489.0,0.0119095]
[1725231796604,0.34783,57500.0,57488.0,0.008998]
[1725231796605,0.33271642,57499.0,57488.0,0.008998]
[1725231796819,0.347786,57507.0,57491.0,0.2232]
[1725231797044,0.2064,57516.0,57492.0,0.023]
[1725231797045,0.50540786,57515.0,57492.0,0.023]
[1725231797263,0.2064,57516.0,57492.0,0.023]
[1725231797264,0.173905,57503.0,57493.0,0.347867]